bitfinex/quotes_BTCUSD_20250219
["timestamp","ask_amount","ask_price","bid_price","bid_amount"]
[1739925615984,0.15809848,95761.0,95760.0,0.0003416]
[1739925616171,0.15809848,95761.0,95760.0,0.0023416]
[1739925622169,0.15809848,95761.0,95760.0,0.0831416]
[1739925623507,0.15809848,95761.0,95760.0,0.0023416]
[1739925628607,0.15826878,95761.0,95760.0,0.0023416]
[1739925629446,0.15826878,95761.0,95760.0,6e-07]
[1739925629686,0.30826878,95761.0,95760.0,6e-07]
[1739925631529,0.156661,95748.0,95741.0,0.0803]
[1739925631739,0.156661,95748.0,95747.0,0.0838762]
[1739925631946,0.15811937,95748.0,95747.0,0.0838762]
[1739925632156,0.15805861,95748.0,95747.0,0.0838762]
[1739925633170,0.15805861,95748.0,95747.0,0.00013156]
[1739925636296,0.15905861,95748.0,95747.0,0.00013156]
[1739925637069,0.16682536,95748.0,95747.0,0.00013156]
[1739925640502,0.16582536,95748.0,95747.0,0.00013156]
[1739925640770,0.16582536,95748.0,95747.0,0.00047216]
[1739925642024,0.16682536,95748.0,95747.0,0.00047216]
[1739925642435,0.16582536,95748.0,95747.0,0.00047216]
[1739925642578,0.16682536,95748.0,95747.0,0.00047216]
[1739925643428,0.15905861,95748.0,95747.0,0.00047216]
[1739925643836,0.15805861,95748.0,95747.0,0.00047216]
[1739925645631,0.208875,95751.0,95747.0,0.00047216]
[1739925645834,0.15799957,95748.0,95747.0,0.00047216]
[1739925652875,0.00133857,95748.0,95747.0,0.07727216]
[1739925653300,0.1568283,95750.0,95748.0,0.0809]
[1739925653517,0.0001703,95750.0,95748.0,0.0809]
[1739925653742,0.00133881,95749.0,95748.0,0.0809]
[1739925654844,0.156659,95749.0,95748.0,0.0809]
[1739925655068,0.157659,95749.0,95748.0,0.0809]
[1739925655283,0.15899823,95749.0,95748.0,0.0809]
[1739925656426,0.15799823,95749.0,95748.0,0.0809]
[1739925656899,0.15899823,95749.0,95748.0,0.0829]
[1739925657547,0.15799823,95749.0,95748.0,0.0809]
[1739925657780,0.15799823,95749.0,95748.0,0.0829]
[1739925659355,0.15799823,95749.0,95748.0,0.0809]
[1739925659801,0.15799823,95749.0,95748.0,0.0819]
[1739925661088,0.15799823,95749.0,95748.0,0.0809]
[1739925661309,0.15799823,95749.0,95748.0,0.0819]
[1739925662407,0.15799823,95749.0,95748.0,0.001]
[1739925663991,0.15799823,95749.0,95748.0,0.0797]
[1739925664211,0.15799823,95749.0,95748.0,0.0787]
[1739925664333,0.15799823,95749.0,95748.0,0.0817]
[1739925665650,0.15799823,95749.0,95748.0,0.0787]
[1739925666060,0.15799823,95749.0,95748.0,0.0817]
[1739925666884,0.15799823,95749.0,95748.0,0.0787]
[1739925667095,0.15799823,95749.0,95748.0,0.0817]
[1739925667320,0.15799823,95749.0,95748.0,0.0787]
[1739925667984,0.156661,95748.0,95747.0,0.00047216]
[1739925668443,0.15799947,95748.0,95747.0,0.00047216]
[1739925669323,0.15799947,95748.0,95747.0,0.00247216]
[1739925670668,0.17381645,95748.0,95747.0,0.00247216]
[1739925670885,0.15799947,95748.0,95747.0,0.00247216]
[1739925671331,0.15799947,95748.0,95747.0,1.6e-07]
[1739925671539,0.30799947,95748.0,95747.0,1.6e-07]
[1739925671968,0.15133847,95748.0,95727.0,0.0804]
[1739925672195,0.156693,95728.0,95727.0,0.0804]
[1739925672635,0.156705,95721.0,95720.0,0.324]
[1739925673054,0.15804221,95721.0,95720.0,0.324]
[1739925673711,0.15804221,95721.0,95720.0,0.327]
[1739925674393,0.15804221,95721.0,95720.0,0.3273404]
[1739925674817,0.156705,95721.0,95720.0,0.3273404]
[1739925675050,0.15804192,95721.0,95720.0,0.3273404]
[1739925675500,0.15804192,95721.0,95720.0,0.3243404]
[1739925675919,0.157705,95721.0,95720.0,0.3243404]
[1739925676175,0.15904192,95721.0,95720.0,0.0003404]
[1739925683483,0.15904192,95721.0,95710.0,0.0003404]
[1739925683484,0.15,95720.0,95710.0,0.0003404]
[1739925683721,0.023,95720.0,95710.0,0.0003006]
[1739925683931,0.02086287,95714.0,95710.0,0.00013041]
[1739925684353,0.023,95712.0,95710.0,0.00013041]
[1739925684784,0.00133509,95711.0,95710.0,0.00013041]
[1739925685235,0.00140815,95711.0,95710.0,0.00013041]
[1739925686302,0.00440815,95711.0,95710.0,0.00013041]
[1739925688971,0.01226079,95711.0,95710.0,4.1e-07]
[1739925689495,0.06866079,95711.0,95710.0,4.1e-07]
[1739925689742,0.173,95710.0,95707.0,2e-07]
[1739925690274,0.023,95708.0,95707.0,2e-07]
[1739925690731,0.02433478,95708.0,95707.0,2e-07]
[1739925692500,0.03133478,95708.0,95707.0,2e-07]
[1739925692771,0.06028712,95708.0,95707.0,2e-07]
[1739925693174,0.15,95702.0,95693.0,4e-07]
[1739925693400,0.023,95701.0,95693.0,4e-07]
[1739925693619,0.02433474,95701.0,95693.0,4e-07]
[1739925694181,0.023,95695.0,95693.0,4e-07]
[1739925694380,0.02973347,95694.0,95693.0,4e-07]
[1739925694594,0.0310679,95694.0,95693.0,4e-07]
[1739925695309,0.02433443,95694.0,95693.0,4e-07]
[1739925696139,0.02833443,95694.0,95693.0,4e-07]
[1739925698594,0.0488459,95694.0,95693.0,4e-07]
[1739925698725,0.07250194,95694.0,95693.0,4e-07]
[1739925699606,0.07250194,95694.0,95693.0,0.0759004]
[1739925699756,0.07116751,95694.0,95693.0,4e-07]
[1739925699958,0.0725007,95694.0,95693.0,4e-07]
[1739925700435,0.08175077,95694.0,95693.0,4e-07]
[1739925701170,0.0725007,95694.0,95693.0,4e-07]
[1739925701375,0.0685007,95694.0,95693.0,4e-07]
[1739925701796,0.08888442,95694.0,95693.0,4e-07]
[1739925702003,0.08488442,95694.0,95693.0,4e-07]
[1739925702193,0.15,95693.0,95684.0,0.0003008]
[1739925702590,0.00133316,95692.0,95684.0,0.0003008]
[1739925704138,0.14708198,95693.0,95684.0,0.0003008]
[1739925704357,0.00127762,95692.0,95684.0,0.0003008]
[1739925705008,0.02427762,95692.0,95684.0,0.0003008]
[1739925705633,0.02827762,95692.0,95685.0,0.1234]
[1739925706277,0.01638321,95691.0,95685.0,0.1234]
[1739925706723,0.00127759,95690.0,95685.0,0.1234]
[1739925707865,0.00773415,95686.0,95685.0,0.075]
[1739925708586,0.00901168,95686.0,95685.0,0.075]
[1739925709338,0.01101168,95686.0,95685.0,0.075]
[1739925710334,0.00901168,95686.0,95685.0,0.075]
[1739925711549,0.01101168,95686.0,95685.0,0.075]
[1739925712024,0.00901168,95686.0,95685.0,0.075]
[1739925712268,0.01101168,95686.0,95685.0,0.075]
[1739925719887,0.023,95693.0,95685.0,0.075]
[1739925720104,0.0012243,95686.0,95685.0,0.075]
[1739925720324,0.00117337,95692.0,95685.0,0.075]
[1739925720557,0.00117328,95686.0,95685.0,0.0753406]
[1739925720784,0.0001703,95693.0,95685.0,0.0753406]
[1739925721478,0.001,95686.0,95685.0,0.0753406]
[1739925721698,0.0001703,95693.0,95685.0,0.0753406]
[1739925721936,0.00775894,95686.0,95685.0,0.0753406]
[1739925722387,0.00893222,95686.0,95685.0,0.0753406]
[1739925722622,0.00993222,95686.0,95685.0,0.0753406]
[1739925722847,0.00893222,95686.0,95685.0,0.0753406]
[1739925723807,0.00775894,95686.0,95685.0,0.0753406]
[1739925726419,0.02414226,95686.0,95685.0,0.0753406]
[1739925726634,0.02531554,95686.0,95685.0,0.0753406]
[1739925727070,0.02552831,95708.0,95685.0,0.0753406]
[1739925727352,0.07905817,95695.0,95685.0,0.0753406]
[1739925727845,0.001,95686.0,95685.0,0.0753406]
[1739925728076,0.01638312,95693.0,95685.0,0.0753406]
[1739925729696,0.02038312,95693.0,95685.0,0.0753406]
[1739925730881,0.00799198,95686.0,95685.0,0.0753406]
[1739925731882,0.00799198,95686.0,95685.0,0.0003406]
[1739925732295,0.00899198,95686.0,95685.0,0.0003406]
[1739925732730,0.00799198,95686.0,95685.0,0.0003406]
[1739925734057,0.00899198,95686.0,95680.0,0.0784]
[1739925734683,0.00999198,95686.0,95680.0,0.0784]
[1739925734965,0.00799198,95686.0,95680.0,0.0784]
[1739925735191,0.01299198,95686.0,95680.0,0.0784]
[1739925735428,0.03366351,95686.0,95680.0,0.0784]
[1739925736126,0.01299198,95686.0,95680.0,0.0784]
[1739925736595,0.01638392,95685.0,95680.0,0.0784]
[1739925737957,0.02038392,95685.0,95680.0,0.0784]
[1739925738203,0.01638392,95685.0,95680.0,0.0784]
[1739925738391,0.02038392,95685.0,95680.0,0.0784]
[1739925738606,0.01638392,95685.0,95680.0,0.0784]
[1739925739080,0.02038392,95685.0,95680.0,0.0784]
[1739925740300,0.01638392,95685.0,95680.0,0.0784]
[1739925740536,0.02038392,95685.0,95680.0,0.0784]
[1739925743172,0.004,95685.0,95680.0,0.0784]
[1739925743374,0.00799198,95686.0,95680.0,0.0784]
[1739925743638,0.002,95685.0,95680.0,0.0784]
[1739925744078,0.00799198,95686.0,95680.0,0.0784]
[1739925744312,0.002,95685.0,95680.0,0.0784]
[1739925744524,0.002,95685.0,95680.0,0.0787406]
[1739925745155,0.00799198,95686.0,95680.0,0.0787406]
[1739925746298,0.0163836,95685.0,95680.0,0.0787406]
[1739925746499,0.0173836,95685.0,95680.0,0.0787406]
[1739925746747,0.0163836,95685.0,95680.0,0.0787406]
[1739925747652,0.0173836,95685.0,95680.0,0.0787406]
[1739925748083,0.0183836,95685.0,95680.0,0.0787406]
[1739925749866,0.0163836,95685.0,95680.0,0.0787406]
[1739925750115,0.0173836,95685.0,95680.0,0.0787406]
[1739925750785,0.0183836,95685.0,95680.0,0.0787406]
[1739925751422,0.0173836,95685.0,95680.0,0.0787406]
[1739925751815,0.0163836,95685.0,95680.0,0.0787406]
[1739925752931,0.0173836,95685.0,95680.0,0.0787406]
[1739925753152,0.00799198,95686.0,95680.0,0.0787406]
[1739925753393,0.001,95685.0,95680.0,0.0787406]
[1739925753841,0.00799198,95686.0,95680.0,0.0787406]
[1739925754068,0.001,95685.0,95680.0,0.0787406]
[1739925754804,0.00799198,95686.0,95680.0,0.0787406]
[1739925756237,0.01638378,95685.0,95680.0,0.0787406]
[1739925757923,0.01738378,95685.0,95680.0,0.0787406]
[1739925760065,0.01638378,95685.0,95680.0,0.0787406]
[1739925760508,0.01738378,95685.0,95680.0,0.0787406]
[1739925763986,0.01738378,95685.0,95682.0,0.08374464]
[1739925764222,0.01638378,95685.0,95684.0,0.0792]
[1739925764506,0.001,95685.0,95684.0,0.0792]
[1739925764727,0.001,95685.0,95684.0,0.1285]
[1739925764728,0.0163833,95685.0,95684.0,0.1285]
[1739925765911,0.0163833,95685.0,95684.0,0.15300293]
[1739925766152,0.0163833,95685.0,95684.0,0.17300293]
[1739925767963,0.156763,95686.0,95685.0,0.02]
[1739925768191,0.156763,95686.0,95685.0,0.1448]
[1739925770906,0.17314571,95686.0,95685.0,0.1448]
[1739925771122,0.17314571,95686.0,95685.0,0.17093293]
[1739925771367,0.17314571,95686.0,95685.0,0.49493293]
[1739925773246,0.156763,95686.0,95685.0,0.49493293]
[1739925776479,0.17314587,95686.0,95685.0,0.49493293]
[1739925778119,0.17314587,95686.0,95685.0,0.51493293]
[1739925779569,0.156751,95693.0,95692.0,0.0988]
[1739925779811,0.156751,95693.0,95692.0,0.11470366]
[1739925780040,0.17313296,95693.0,95692.0,0.11470366]
[1739925780284,0.17313296,95693.0,95692.0,0.0988]
[1739925781833,0.17313296,95693.0,95692.0,0.1188]
[1739925782292,0.156751,95693.0,95692.0,0.1188]
[1739925783218,0.156751,95693.0,95692.0,0.4428]
[1739925785368,0.17313278,95693.0,95692.0,0.4428]
[1739925786281,0.01638178,95693.0,95692.0,0.51934772]
[1739925788744,0.07596743,95749.0,95693.0,0.02]
[1739925788981,0.07905817,95720.0,95694.0,0.324]
[1739925789432,0.10530107,95720.0,95694.0,0.324]
[1739925790414,0.07905817,95710.0,95694.0,0.324]
[1739925792746,0.08305817,95710.0,95694.0,0.324]
[1739925793396,0.08805817,95710.0,95694.0,0.324]
[1739925793620,0.08822847,95710.0,95694.0,0.324]
[1739925796317,0.0163821,95707.0,95694.0,0.324]
[1739925798511,0.0163821,95707.0,95695.0,0.0832]
[1739925798977,0.0203821,95707.0,95695.0,0.0832]
[1739925799625,0.0163821,95707.0,95695.0,0.0832]
[1739925800076,0.0203821,95707.0,95695.0,0.0832]
[1739925800307,0.0163821,95707.0,95695.0,0.0832]
[1739925800527,0.0203821,95707.0,95695.0,0.0832]
[1739925801971,0.0163821,95707.0,95695.0,0.0832]
[1739925802171,0.0203821,95707.0,95695.0,0.0832]
[1739925803377,0.004,95707.0,95695.0,0.0832]
[1739925806167,0.01638246,95705.0,95695.0,0.0832]
[1739925808366,0.01938246,95705.0,95695.0,0.0832]
[1739925809568,0.01638246,95705.0,95695.0,0.0832]
[1739925810054,0.01938246,95705.0,95695.0,0.0832]
[1739925811413,0.01638246,95705.0,95695.0,0.0832]
[1739925811670,0.01938246,95705.0,95695.0,0.0832]
[1739925813139,0.003,95705.0,95695.0,0.0832]
[1739925814855,0.003,95705.0,95696.0,0.0484]
[1739925815067,0.003,95705.0,95697.0,0.0785]
[1739925815997,0.07905817,95720.0,95697.0,0.0785]
[1739925816226,0.01638199,95704.0,95697.0,0.0785]
[1739925816458,0.002,95705.0,95697.0,0.0785]
[1739925816684,0.0163823,95703.0,95697.0,0.0785]
[1739925818697,0.0183823,95703.0,95697.0,0.0785]
[1739925819051,0.0203823,95703.0,95697.0,0.0785]
[1739925819399,0.0163823,95703.0,95697.0,0.0785]
[1739925820833,0.0183823,95703.0,95697.0,0.0785]
[1739925821201,0.0183823,95703.0,95697.0,0.0828]
[1739925821617,0.0193823,95703.0,95697.0,0.0828]
[1739925821855,0.0173823,95703.0,95697.0,0.0828]
[1739925822090,0.0183823,95703.0,95697.0,0.0828]
[1739925822352,0.0173823,95703.0,95697.0,0.0828]
[1739925822806,0.0183823,95703.0,95697.0,0.0828]
[1739925823233,0.002,95703.0,95697.0,0.0828]
[1739925823973,0.00800959,95706.0,95697.0,0.0828]
[1739925824359,3.818,95700.0,95697.0,0.0828]
[1739925827485,3.83438215,95700.0,95697.0,0.0838]
[1739925827713,3.83438215,95700.0,95697.0,0.0828]
[1739925828205,3.83438215,95700.0,95697.0,0.0838]
[1739925829206,3.54987649,95700.0,95697.0,0.0838]
[1739925833128,3.53349434,95700.0,95697.0,0.0838]
[1739925837505,3.54987651,95700.0,95697.0,0.0838]
[1739925841781,3.53349434,95700.0,95697.0,0.0838]
[1739925842485,3.53349434,95700.0,95697.0,0.0841404]
[1739925848984,3.53349434,95700.0,95697.0,0.0831404]
[1739925849190,3.53349434,95700.0,95697.0,0.0841404]
[1739925851814,3.54987636,95700.0,95697.0,0.0841404]
[1739925853078,3.53349434,95700.0,95697.0,0.0841404]
[1739925854843,3.24138278,95700.0,95697.0,0.0841404]
[1739925855989,2.98857698,95700.0,95697.0,0.0841404]
[1739925856264,3.00495902,95700.0,95697.0,0.0841404]
[1739925856503,3.00512922,95700.0,95697.0,0.0841404]
[1739925862964,2.70475315,95700.0,95697.0,0.0841404]
[1739925864048,2.70475315,95700.0,95697.0,0.0831404]
[1739925865468,2.70475315,95700.0,95697.0,0.0841404]
[1739925867334,2.72113496,95700.0,95697.0,0.0841404]
[1739925868554,2.46028878,95700.0,95697.0,0.0841404]
[1739925871685,2.44390697,95700.0,95697.0,0.0841404]
[1739925878701,2.44390697,95700.0,95699.0,0.0781]
[1739925880229,2.44390697,95700.0,95699.0,0.0791]
[1739925881879,2.46028838,95700.0,95699.0,0.0791]
[1739925882097,2.44390697,95700.0,95699.0,0.0791]
[1739925884134,2.44390697,95700.0,95699.0,0.4031]
[1739925885879,2.44390697,95700.0,95699.0,0.579841]
[1739925886090,2.44390697,95700.0,95699.0,0.629341]
[1739925886328,2.16267941,95700.0,95699.0,0.629341]
[1739925886573,2.17906162,95700.0,95699.0,0.649341]
[1739925888767,2.17906162,95700.0,95699.0,0.648341]
[1739925889024,2.17906162,95700.0,95699.0,0.651341]
[1739925889245,2.17906162,95700.0,95699.0,0.648341]
[1739925889695,2.17906162,95700.0,95699.0,0.651341]
[1739925890114,2.17906162,95700.0,95699.0,1.197041]
[1739925890342,2.17906162,95700.0,95699.0,1.194041]
[1739925890802,2.18006162,95700.0,95699.0,1.198041]
[1739925891709,2.18006162,95700.0,95699.0,1.1983814]
[1739925891932,2.18006162,95700.0,95699.0,1.1943814]
[1739925892097,2.17906162,95700.0,95699.0,1.1943814]
[1739925892372,2.18006162,95700.0,95699.0,1.1973814]
[1739925893098,2.16367941,95700.0,95699.0,1.1973814]
[1739925894557,1.88611939,95700.0,95699.0,1.1973814]
[1739925895452,1.66436837,95700.0,95699.0,1.1973814]
[1739925896188,1.68074878,95700.0,95699.0,1.1973814]
[1739925896704,1.67974878,95700.0,95699.0,1.1943814]
[1739925897179,1.68074878,95700.0,95699.0,1.1973814]
[1739925902482,1.67974878,95700.0,95699.0,1.1943814]
[1739925902893,1.68074878,95700.0,95699.0,1.1973814]
[1739925903544,1.66436837,95700.0,95699.0,1.1973814]
[1739925906706,1.68074875,95700.0,95699.0,1.1973814]
[1739925908604,1.67974875,95700.0,95699.0,1.1943814]
[1739925909054,1.68074875,95700.0,95699.0,1.1973814]
[1739925912289,1.68074875,95700.0,95699.0,1.0406404]
[1739925913229,1.66436837,95700.0,95699.0,1.0406404]
[1739925913686,1.66436837,95700.0,95699.0,1.1973814]
[1739925914162,1.66436837,95700.0,95699.0,1.0406404]
[1739925914432,1.82110737,95700.0,95699.0,0.8730404]
[1739925915317,1.82010737,95700.0,95699.0,0.8700404]
[1739925915546,1.82010737,95700.0,95699.0,0.8720404]
[1739925915781,1.82010737,95700.0,95699.0,0.8700404]
[1739925916145,1.83648945,95700.0,95699.0,0.8720404]
[1739925917324,1.67975045,95700.0,95699.0,0.8720404]
[1739925917513,1.67975045,95700.0,95699.0,0.8920404]
[1739925917716,1.67975045,95700.0,95699.0,0.8900404]
[1739925918006,1.68075045,95700.0,95699.0,0.8900404]
[1739925918221,1.68075045,95700.0,95699.0,0.9725404]
[1739925918423,1.67975045,95700.0,95699.0,0.9725404]
[1739925918632,1.67975045,95700.0,95699.0,0.9755404]
[1739925919068,1.67975045,95700.0,95699.0,0.9725404]
[1739925919290,1.67975045,95700.0,95699.0,0.9755404]
[1739925919778,1.39141967,95700.0,95699.0,0.9755404]
[1739925920810,1.39141967,95700.0,95699.0,0.9725404]
[1739925921176,1.39141967,95700.0,95699.0,0.9765404]
[1739925922599,1.39141967,95700.0,95699.0,1.0195404]
[1739925922817,1.39141967,95700.0,95699.0,1.0686404]
[1739925923275,1.37503759,95700.0,95699.0,1.0686404]
[1739925923922,1.37503759,95700.0,95699.0,1.0646404]
[1739925924144,1.37603759,95700.0,95699.0,1.0716404]
[1739925924638,1.37503759,95700.0,95699.0,1.0646404]
[1739925924849,1.37603759,95700.0,95699.0,1.0716404]
[1739925925075,1.37603759,95700.0,95699.0,1.0646404]
[1739925925292,1.37703759,95700.0,95699.0,1.0716404]
[1739925925723,1.37703759,95700.0,95699.0,1.2283814]
[1739925927615,1.39141748,95700.0,95699.0,1.2213814]
[1739925927863,1.39241748,95700.0,95699.0,1.2283814]
[1739925928080,1.39141748,95700.0,95699.0,1.2213814]
[1739925928529,1.39141748,95700.0,95699.0,1.2283814]
[1739925928530,1.39241748,95700.0,95699.0,1.2283814]
[1739925928740,1.39241748,95700.0,95699.0,1.2213814]
[1739925928967,1.39341748,95700.0,95699.0,1.2283814]
[1739925929339,1.39141748,95700.0,95699.0,1.2213814]
[1739925930721,1.39241748,95700.0,95699.0,1.2283814]
[1739925932412,1.37603759,95700.0,95699.0,1.2283814]
[1739925933555,1.14068226,95700.0,95699.0,1.2213814]
[1739925933998,1.14168226,95700.0,95699.0,1.2283814]
[1739925934218,1.14168226,95700.0,95699.0,1.2213814]
[1739925934542,1.14268226,95700.0,95699.0,1.2283814]
[1739925936905,1.15906247,95700.0,95699.0,1.2283814]
[1739925938212,1.15806247,95700.0,95699.0,1.2283814]
[1739925938427,1.15706247,95700.0,95699.0,1.2213814]
[1739925938651,1.15806247,95700.0,95699.0,1.2283814]
[1739925943297,1.14168226,95700.0,95699.0,1.2283814]
[1739925944959,1.14168226,95700.0,95699.0,1.0716404]
[1739925946320,1.15806211,95700.0,95699.0,1.0716404]
[1739925948664,1.15806211,95700.0,95699.0,1.0486404]
[1739925948911,1.31480111,95700.0,95699.0,1.0486404]
[1739925951221,1.31480111,95700.0,95699.0,0.8770404]
[1739925951917,1.31380111,95700.0,95699.0,0.8700404]
[1739925952625,1.29742126,95700.0,95699.0,0.3243404]
[1739925953126,1.29742126,95700.0,95699.0,0.38091062]
[1739925953959,1.29742126,95700.0,95699.0,0.3443404]
[1739925954425,1.29742126,95700.0,95699.0,0.3513404]
[1739925954656,1.29742126,95700.0,95699.0,0.3443404]
[1739925954823,1.29742126,95700.0,95699.0,0.3463404]
[1739925956796,1.31380217,95700.0,95699.0,0.3463404]
[1739925962027,1.15706317,95700.0,95699.0,0.3463404]
[1739925962274,1.31380217,95700.0,95699.0,0.3463404]
[1739925963201,1.29742126,95700.0,95699.0,0.3463404]
[1739925963636,1.14068226,95700.0,95699.0,0.3463404]
[1739925964332,1.14068226,95700.0,95699.0,0.5695814]
[1739925964561,1.14068226,95700.0,95699.0,0.6477814]
[1739925964777,1.14068226,95700.0,95699.0,0.6707814]
[1739925965232,1.14068226,95700.0,95699.0,1.2164814]
[1739925965746,1.14068226,95700.0,95699.0,1.2144814]
[1739925965965,1.08620161,95700.0,95699.0,1.33835443]
[1739925966186,1.10258124,95700.0,95699.0,1.33835443]
[1739925967109,1.10258124,95700.0,95699.0,1.34535443]
[1739925967340,1.10258124,95700.0,95699.0,1.33835443]
[1739925967777,1.10258124,95700.0,95699.0,1.34535443]
[1739925968259,1.02448124,95700.0,95699.0,1.54629262]
[1739925968753,1.01747795,95700.0,95699.0,1.54629262]
[1739925970325,1.01747795,95700.0,95699.0,1.53929262]
[1739925970575,1.01747795,95700.0,95699.0,1.54629262]
[1739925971251,1.01747795,95700.0,95699.0,1.53929262]
[1739925971701,0.95574686,95700.0,95699.0,1.54629262]
[1739925971926,0.93324685,95700.0,95699.0,1.54629262]
[1739925972191,0.88436543,95700.0,95699.0,1.54629262]
[1739925972392,0.76711559,95700.0,95699.0,1.56629262]
[1739925972614,0.73023126,95700.0,95699.0,1.56629262]
[1739925972850,0.68778478,95700.0,95699.0,1.56629262]
[1739925973323,0.68778478,95700.0,95699.0,1.55929262]
[1739925973773,0.68778478,95700.0,95699.0,1.56629262]
[1739925974891,0.66777589,95700.0,95699.0,1.56629262]
[1739925975173,0.50615509,95700.0,95699.0,1.56629262]
[1739925975409,0.0001702,95747.0,95738.0,0.298577]
[1739925975629,0.0001702,95747.0,95738.0,0.622577]
[1739925976712,0.01654214,95739.0,95738.0,0.622577]
[1739925976911,0.01654214,95739.0,95738.0,0.72508065]
[1739925977351,0.01654214,95739.0,95738.0,0.74555459]
[1739925977699,0.01654214,95739.0,95738.0,0.75255459]
[1739925979169,0.01654214,95739.0,95738.0,1.29825459]
[1739925980504,0.01654214,95739.0,95738.0,1.29125459]
[1739925981426,0.01654214,95739.0,95738.0,1.29825459]
[1739925981642,0.01654214,95739.0,95738.0,1.29125459]
[1739925982079,0.01654214,95739.0,95738.0,1.29825459]
[1739925983376,0.0001702,95739.0,95738.0,1.27825459]
[1739925983667,0.0001702,95739.0,95738.0,1.29825459]
[1739925984808,0.0001702,95739.0,95738.0,1.29125459]
[1739925985261,0.0001702,95739.0,95738.0,1.29825459]
[1739925986290,0.0165421,95739.0,95738.0,1.29825459]
[1739925990053,0.0165421,95739.0,95738.0,1.29125459]
[1739925990280,0.0001702,95747.0,95746.0,0.219664]
[1739925990511,0.0001702,95747.0,95746.0,0.53131229]
[1739925990739,0.01654,95747.0,95746.0,0.53131229]
[1739925991184,0.01654,95747.0,95746.0,1.55101229]
[1739925992135,0.01654,95747.0,95746.0,1.55801229]
[1739925992387,0.01654,95747.0,95746.0,1.57750953]
[1739925993023,0.0001702,95747.0,95746.0,1.57750953]
[1739925993717,0.0001702,95747.0,95746.0,1.6087131]
[1739925996507,0.0001702,95747.0,95746.0,1.34830446]
[1739925996728,0.0001702,95747.0,95746.0,1.32576846]
[1739925997184,0.0001702,95747.0,95746.0,1.29456489]
[1739925999715,0.0001702,95747.0,95746.0,1.34219288]
[1739926005072,0.156631,95767.0,95766.0,0.043]
[1739926005307,0.156631,95767.0,95766.0,0.324]
[1739926005531,0.282631,95767.0,95766.0,0.344]
[1739926005753,0.282631,95767.0,95766.0,0.364]
[1739926006391,0.2990007,95767.0,95766.0,0.369]
[1739926007756,0.2990007,95767.0,95766.0,0.364]
[1739926007950,0.2990007,95767.0,95766.0,0.367]
[1739926008425,0.2990007,95767.0,95766.0,0.364]
[1739926008647,0.2990007,95767.0,95766.0,0.367]
[1739926013072,0.282631,95767.0,95766.0,0.367]
[1739926014365,0.204531,95767.0,95766.0,0.367]
[1739926015426,0.156631,95767.0,95766.0,0.367]
[1739926016088,0.156631,95767.0,95766.0,0.3673402]
[1739926016304,0.17300058,95767.0,95766.0,0.3673402]
[1739926017170,0.17300058,95767.0,95766.0,0.3643402]
[1739926017602,0.17300058,95767.0,95766.0,0.3673402]
[1739926017812,0.17300058,95767.0,95766.0,0.3643402]
[1739926018067,0.17300058,95767.0,95766.0,0.3693402]
[1739926021866,0.17300058,95767.0,95766.0,0.3643402]
[1739926022323,0.17300058,95767.0,95766.0,0.3693402]
[1739926022557,0.17300058,95767.0,95766.0,0.3643402]
[1739926022774,0.17300058,95767.0,95766.0,0.3443402]
[1739926023013,0.17300058,95767.0,95766.0,0.3643402]
[1739926023264,0.156631,95767.0,95766.0,0.3643402]
[1739926023498,0.156631,95767.0,95766.0,0.3693402]
[1739926024929,0.156617,95775.0,95774.0,0.02]
[1739926026386,0.17298571,95775.0,95774.0,0.02]
[1739926026622,0.17298571,95775.0,95774.0,0.024]
[1739926026845,0.17298571,95775.0,95774.0,0.348]
[1739926027982,0.17298571,95775.0,95774.0,0.344]
[1739926028222,0.17298571,95775.0,95774.0,0.349]
[1739926030082,0.17298571,95775.0,95774.0,0.329]
[1739926030531,0.17298571,95775.0,95774.0,0.349]
[1739926030985,0.17298571,95775.0,95774.0,0.344]
[1739926031203,0.17298571,95775.0,95774.0,0.324]
[1739926031426,0.17298571,95775.0,95774.0,0.327]
[1739926031656,0.17298571,95775.0,95774.0,0.324]
[1739926031886,0.25108571,95775.0,95774.0,0.327]
[1739926032374,0.25108571,95775.0,95774.0,0.324]
[1739926032598,0.25108571,95775.0,95774.0,0.327]
[1739926032815,0.25108571,95775.0,95774.0,0.324]
[1739926033324,0.234717,95775.0,95774.0,0.324]
[1739926034258,0.432617,95775.0,95774.0,0.327]
[1739926034978,0.432617,95775.0,95774.0,0.324]
[1739926035437,0.306617,95775.0,95774.0,0.324]
[1739926037575,0.32298657,95775.0,95774.0,0.324]
[1739926038697,0.32298657,95775.0,95774.0,0.326]
[1739926038912,0.32298657,95775.0,95774.0,0.324]
[1739926040542,0.32298657,95775.0,95774.0,0.326]
[1739926041215,0.32298657,95775.0,95774.0,0.324]
[1739926041652,0.32298657,95775.0,95774.0,0.326]
[1739926041870,0.32298657,95775.0,95774.0,0.324]
[1739926042797,0.306617,95775.0,95774.0,0.324]
[1739926047296,0.32298779,95775.0,95774.0,0.344]
[1739926050244,0.32298779,95775.0,95774.0,0.3443402]
[1739926050723,0.01637079,95775.0,95774.0,0.3463402]
[1739926050933,0.01637079,95775.0,95774.0,0.3443402]
[1739926051168,0.01637079,95775.0,95774.0,0.3463402]
[1739926051838,0.17298779,95775.0,95774.0,0.3443402]
[1739926052290,0.17298779,95775.0,95774.0,0.3463402]
[1739926053790,0.32298779,95775.0,95774.0,0.3443402]
[1739926054253,0.32298779,95775.0,95774.0,0.3463402]
[1739926054471,0.208818,95777.0,95774.0,0.3443402]
[1739926054689,0.156615,95777.0,95776.0,0.10374464]
[1739926054930,0.365433,95777.0,95776.0,0.10374464]
[1739926055718,0.365433,95777.0,95776.0,0.10674464]
[1739926057041,0.365433,95777.0,95776.0,0.10374464]
[1739926057461,0.38180174,95777.0,95776.0,0.10674464]
[1739926059397,0.38180174,95777.0,95776.0,0.43074464]
[1739926062495,0.365433,95777.0,95776.0,0.43074464]
[1739926062918,0.3656031,95777.0,95776.0,0.43074464]
[1739926065689,0.38197152,95777.0,95776.0,0.43074464]
[1739926066705,0.38197152,95777.0,95776.0,0.42774464]
[1739926067147,0.38197152,95777.0,95776.0,0.43174464]
[1739926070480,0.38197152,95777.0,95776.0,0.42774464]
[1739926070678,0.38197152,95777.0,95776.0,0.43174464]
[1739926072038,0.38197152,95777.0,95776.0,0.42774464]
[1739926072271,0.38197152,95777.0,95776.0,0.43274464]
[1739926073410,0.3656031,95777.0,95776.0,0.43274464]
[1739926073619,0.3656031,95777.0,95776.0,0.42774464]
[1739926073822,0.3656031,95777.0,95776.0,0.43274464]